[Event "DVM U12W 2021"]
[Site "Willingen"]
[Date "2022.08.15"]
[Round "6"]
[White "Sayouf, Rafif"]
[Black "Blome, Antonia"]
[Result "0-1"]
[ECO "C50"]
[WhiteElo "1102"]
[BlackElo "823"]
[Annotator "NA RC"]
[PlyCount "138"]
[EventDate "2022.08.12"]
[EventType "team-tourn"]
[EventRounds "7"]
[EventCountry "GER"]
[SourceTitle "playchess.com"]
[Source "ChessBase"]
[SourceQuality "1"]
[TimeControl "40/5400+30:1800+30"]

1. e4 {[%emt 0:00:09]} e5 {[%emt 0:00:00]} 2. Nf3 {[%emt 0:00:11]} Nc6 {[%emt 0:00:00]} 3. Bc4 {[%emt 0:00:10]} Bc5 {[%emt 0:00:03]} 4. Nc3 {[%emt 0:00:14]} Nf6 {[%emt 0:00:06]} 5. d3 {[%emt 0:00:15]} d6 {[%emt 0:00:05]} 6. Bg5 {[%emt 0:00:48]} h6 {[%emt 0:00:24]} 7. Bh4 {[%emt 0:00:42]} g5 {[%emt 0:00:10]} 8. Bg3 {[%emt 0:00:45]} Be6 {[%emt 0:02:17]} 9. Nd2 {[%emt 0:02:40]} Qd7 {[%emt 0:00:25]} 10. Qe2 {[%emt 0:05:23]} Nd4 {[%emt 0:00:36]} 11. Qd1 {[%emt 0:03:29]} c6 {[%emt 0:02:37]} 12. Nf3 {[%emt 0:03:42]} a6 {[%emt 0:01:57]} 13. Nxd4 {[%emt 0:02:58]} Bxd4 {[%emt 0:04:12]} 14. Qd2 {[%emt 0:05:32]} d5 {[%emt 0:02:19]} 15. exd5 {[%emt 0:03:11]} Bxd5 {[%emt 0:04:26]} 16. Bxd5 {[%emt 0:00:22]} Nxd5 {[%emt 0:00:15]} 17. Nxd5 {[%emt 0:00:29]} Qxd5 {[%emt 0:01:21]} 18. O-O {[%emt 0:03:25]} f5 {[%emt 0:00:00]} 19. h3 {[%emt 0:01:28]} f4 {[%emt 0:00:59]} 20. Bh2 {[%emt 0:00:30]} Rb8 {[%emt 0:00:39]} 21. c4 {[%emt 0:04:13]} Qd7 {[%emt 0:01:34]} 22. Rfe1 {[%emt 0:04:46]} O-O {[%emt 0:03:05]} 23. Rab1 {[%emt 0:03:29]} g4 {[%emt 0:02:00]} 24. hxg4 {[%emt 0:00:14]} Qxg4 {[%emt 0:00:30]} 25. Qe2 {[%emt 0:04:28]} Qg5 {[%emt 0:06:03]} 26. Qf3 {[%emt 0:03:08]} Rf7 {[%emt 0:07:02]} 27. Qh3 {[%emt 0:01:04]} f3 {[%emt 0:02:09]} 28. g3 {[%emt 0:01:29]} h5 {[%emt 0:02:58]} 29. Qh4 {[%emt 0:01:10]} Qg6 {[%emt 0:02:32]} 30. Re4 {[%emt 0:05:53]} Qh7 {[%emt 0:08:23]} 31. b3 {[%emt 0:04:36]} Rbf8 {[%emt 0:05:53]} 32. Qg5+ {[%emt 0:00:39]} Rg7 {[%emt 0:10:39]} 33. Qh4 {[%emt 0:00:59]} Rg4 {[%emt 0:01:05]} 34. Rxg4+ {[%emt 0:02:40]} hxg4 {[%emt 0:00:11]} 35. Qxh7+ {[%emt 0:00:08]} Kxh7 {[%emt 0:00:13]} 36. a4 {[%emt 0:00:40]} Rc8 {[%emt 0:01:04]} 37. Kf1 {[%emt 0:00:22]} b5 {[%emt 0:00:25]} 38. Ke1 {[%emt 0:00:35]} Kg6 {[%emt 0:00:21]} 39. Bg1 {[%emt 0:00:27]} Re8 {[%emt 0:00:21]} 40. cxb5 {[%emt 0:00:11]} axb5 {[%emt 0:00:32]} 41. axb5 {[%emt 0:30:08]} cxb5 {[%emt 0:30:08]} 42. Rc1 {[%emt 0:00:37]} b4 {[%emt 0:00:08]} 43. Rc6+ {[%emt 0:00:13]} Kf5 {[%emt 0:00:00]} 44. Rc4 {[%emt 0:00:00]} Ra8 {[%emt 0:00:00]} 45. Kd1 {[%emt 0:00:00]} Ra1+ {[%emt 0:00:00]} 46. Kc2 {[%emt 0:00:00]} Rxg1 {[%emt 0:00:00]} 47. Rxb4 {[%emt 0:02:13]} Bxf2 {[%emt 0:02:29]} 48. Rb8 {[%emt 0:00:48]} Bxg3 {[%emt 0:00:12]} 49. Rf8+ {[%emt 0:00:12]} Ke6 {[%emt 0:00:00]} 50. b4 {[%emt 0:00:07]} Rg2+ {[%emt 0:00:05]} 51. Kd1 {[%emt 0:00:29]} e4 {[%emt 0:00:09]} 52. dxe4 {[%emt 0:00:06]} Bd6 {[%emt 0:00:32]} 53. Re8+ {[%emt 0:00:12]} Kd7 {[%emt 0:00:12]} 54. Rg8 {[%emt 0:00:16]} Bxb4 {[%emt 0:00:13]} 55. e5 {[%emt 0:01:50]} g3 {[%emt 0:02:02]} 56. Rg6 {[%emt 0:00:30]} Be7 {[%emt 0:00:30]} 57. e6+ {[%emt 0:00:00]} Kd6 {[%emt 0:00:00]} 58. Ke1 {[%emt 0:00:00]} Re2+ {[%emt 0:00:00]} 59. Kf1 {[%emt 0:00:16]} Bh4 {[%emt 0:00:00]} 60. Rh6 {[%emt 0:00:31]} g2+ {[%emt 0:00:00]} 61. Kg1 {[%emt 0:00:21]} Bf2+ {[%emt 0:00:00]} 62. Kh2 g1=Q+ {[%emt 0:03:11]} 63. Kh3 {[%emt 0:00:57]} Qh1+ {[%emt 0:00:00]} 64. Kg4 {[%emt 0:00:16]} Qxh6 {[%emt 0:00:00]} 65. Kxf3 {[%emt 0:00:08]} Qe3+ {[%emt 0:00:00]} 66. Kg4 {[%emt 0:00:17]} Kxe6 {[%emt 0:00:00]} 67. Kh5 {[%emt 0:00:07]} Qg3 {[%emt 0:00:00]} 68. Kh6 {[%emt 0:00:02]} Re1 {[%emt 0:00:00]} 69. Kh7 {[%emt 0:00:03]} Rh1# 0-1

[Event "DVM U12W 2021"]
[Site "Willingen"]
[Date "2022.08.15"]
[Round "6"]
[White "Kremling, Alamea"]
[Black "Achilles, Rosa"]
[Result "1-0"]
[ECO "A45"]
[WhiteElo "1077"]
[BlackElo "1026"]
[Annotator "NA RC"]
[PlyCount "71"]
[EventDate "2022.08.12"]
[EventType "team-tourn"]
[EventRounds "7"]
[EventCountry "GER"]
[SourceTitle "playchess.com"]
[Source "ChessBase"]
[SourceQuality "1"]
[TimeControl "40/5400+30:1800+30"]

1. d4 {[%emt 0:32:40]} Nf6 {[%emt 0:00:00]} 2. Bf4 {[%emt 0:00:00]} g6 {[%emt 0:00:03]} 3. e3 {[%emt 0:00:00]} Bg7 {[%emt 0:01:41]} 4. Nd2 {[%emt 0:00:00]} O-O {[%emt 0:00:15]} 5. c4 {[%emt 0:00:00]} d5 {[%emt 0:01:49]} 6. Ngf3 {[%emt 0:00:00]} b6 {[%emt 0:03:01]} 7. Bd3 {[%emt 0:00:00]} Bb7 {[%emt 0:00:24]} 8. O-O {[%emt 0:00:00]} c5 {[%emt 0:02:34]} 9. dxc5 {[%emt 0:00:00]} bxc5 {[%emt 0:02:40]} 10. Qb3 {[%emt 0:00:00]} Ba6 {[%emt 0:04:24]} 11. Qa3 {[%emt 0:00:00]} dxc4 {[%emt 0:02:31]} 12. Nxc4 {[%emt 0:00:00]} Bxc4 {[%emt 0:00:27]} 13. Bxc4 {[%emt 0:00:00]} Nbd7 {[%emt 0:01:42]} 14. Rfd1 {[%emt 0:00:00]} Qc8 {[%emt 0:08:56]} 15. b4 {[%emt 0:00:00]} Ne4 {[%emt 0:03:17]} 16. Rac1 {[%emt 0:00:00]} Qb7 {[%emt 0:02:40]} 17. Bd5 {[%emt 0:00:00]} Qxb4 {[%emt 0:00:33]} 18. Qxb4 {[%emt 0:00:00]} cxb4 {[%emt 0:00:24]} 19. Bxa8 {[%emt 0:00:00]} Rxa8 {[%emt 0:01:43]} 20. Rxd7 {[%emt 0:00:00]} Nc3 {[%emt 0:04:01]} 21. Rc2 {[%emt 0:00:00]} e6 {[%emt 0:02:21]} 22. Rb7 {[%emt 0:00:44]} Nd5 {[%emt 0:02:00]} 23. Rb8+ {[%emt 0:02:57]} Rxb8 {[%emt 0:00:22]} 24. Bxb8 {[%emt 0:00:31]} a5 {[%emt 0:01:03]} 25. Rc8+ {[%emt 0:00:18]} Bf8 {[%emt 0:00:25]} 26. Bd6 {[%emt 0:01:09]} f5 {[%emt 0:03:07]} 27. Ng5 {[%emt 0:01:11]} a4 {[%emt 0:00:38]} 28. Rxf8+ {[%emt 0:01:32]} Kg7 {[%emt 0:00:26]} 29. Nxe6+ {[%emt 0:00:19]} Kh6 {[%emt 0:01:10]} 30. Rb8 b3 {[%emt 1:38:02]} 31. axb3 {[%emt 0:02:31]} axb3 {[%emt 0:00:00]} 32. Rxb3 {[%emt 0:00:54]} g5 {[%emt 0:00:00]} 33. Rb5 {[%emt 0:04:35]} Nxe3 {[%emt 0:00:00]} 34. fxe3 {[%emt 0:00:33]} f4 {[%emt 0:00:00]} 35. Rxg5 {[%emt 0:00:14]} f3 {[%emt 0:00:00]} 36. Bf8# 1-0

[Event "DVM U12W 2021"]
[Site "Willingen"]
[Date "2022.08.15"]
[Round "6"]
[White "Einacker, Lina"]
[Black "Fruth, Julia"]
[Result "0-1"]
[ECO "B52"]
[WhiteElo "1010"]
[BlackElo "1037"]
[Annotator "NA RC"]
[PlyCount "72"]
[EventDate "2022.08.12"]
[EventType "team-tourn"]
[EventRounds "7"]
[EventCountry "GER"]
[SourceTitle "playchess.com"]
[Source "ChessBase"]
[SourceQuality "1"]
[TimeControl "40/5400+30:1800+30"]

1. e4 {[%emt 0:00:02]} c5 {[%emt 0:00:06]} 2. Nf3 {[%emt 0:00:07]} d6 {[%emt 0:00:05]} 3. Bb5+ {[%emt 0:00:07]} Bd7 {[%emt 0:01:19]} 4. Bxd7+ {[%emt 0:00:10]} Nxd7 {[%emt 0:00:05]} 5. O-O {[%emt 0:00:14]} Ngf6 {[%emt 0:00:13]} 6. Re1 {[%emt 0:00:07]} e5 {[%emt 0:02:33]} 7. c3 {[%emt 0:02:28]} Be7 {[%emt 0:01:20]} 8. d4 {[%emt 0:02:29]} cxd4 {[%emt 0:03:46]} 9. cxd4 {[%emt 0:00:47]} O-O {[%emt 0:00:47]} 10. d5 {[%emt 0:02:57]} Qb6 {[%emt 0:04:40]} 11. Nc3 {[%emt 0:02:25]} Rac8 {[%emt 0:03:10]} 12. Na4 {[%emt 0:17:59]} Qc7 {[%emt 0:06:12]} 13. Bg5 {[%emt 0:06:11]} h6 {[%emt 0:06:24]} 14. Bh4 {[%emt 0:01:48]} Qa5 {[%emt 0:04:37]} 15. b3 {[%emt 0:03:05]} Rc7 {[%emt 0:02:12]} 16. Rc1 {[%emt 0:02:05]} Rfc8 {[%emt 0:00:14]} 17. Rxc7 {[%emt 0:04:25]} Qxc7 {[%emt 0:00:26]} 18. Nb2 {[%emt 0:02:00]} Qc2 {[%emt 0:04:51]} 19. Qxc2 {[%emt 0:01:58]} Rxc2 {[%emt 0:02:46]} 20. Bxf6 {[%emt 0:03:10]} Nxf6 {[%emt 0:00:18]} 21. Nc4 {[%emt 0:04:44]} Rxa2 {[%emt 0:01:38]} 22. Nh4 {[%emt 0:02:55]} Nxe4 {[%emt 0:01:45]} 23. Nf5 {[%emt 0:02:55]} Bf8 {[%emt 0:00:42]} 24. f3 {[%emt 0:00:52]} Nc3 {[%emt 0:04:45]} 25. f4 {[%emt 0:05:23]} g6 {[%emt 0:05:57]} 26. Ng3 {[%emt 0:05:30]} b5 {[%emt 0:01:06]} 27. Nxd6 {[%emt 0:02:49]} Bxd6 {[%emt 0:01:34]} 28. fxe5 {[%emt 0:00:18]} Bc5+ {[%emt 0:00:33]} 29. Kf1 {[%emt 0:01:06]} Rf2+ {[%emt 0:01:24]} 30. Kg1 {[%emt 0:00:19]} Ne2+ {[%emt 0:01:17]} 31. Nxe2 {[%emt 0:00:27]} Rxe2+ {[%emt 0:00:12]} 32. Kf1 {[%emt 0:00:15]} Rxe1+ {[%emt 0:00:08]} 33. Kxe1 {[%emt 0:00:09]} Bd4 {[%emt 0:00:17]} 34. Kd2 {[%emt 0:01:28]} Bxe5 {[%emt 0:00:24]} 35. g3 {[%emt 0:00:49]} Kf8 {[%emt 0:00:10]} 36. Kc2 {[%emt 0:00:57]} Ke7 {[%emt 0:00:34]} 0-1

[Event "DVM U12W 2021"]
[Site "Willingen"]
[Date "2022.08.15"]
[Round "6"]
[White "Xiao, Karoline"]
[Black "Berger, Jennifer"]
[Result "1-0"]
[ECO "D02"]
[WhiteElo "965"]
[BlackElo "1050"]
[Annotator "NA RC"]
[PlyCount "85"]
[EventDate "2022.08.12"]
[EventType "team-tourn"]
[EventRounds "7"]
[EventCountry "GER"]
[SourceTitle "playchess.com"]
[Source "ChessBase"]
[SourceQuality "1"]
[TimeControl "40/5400+30:1800+30"]

1. d4 {[%emt 0:00:09]} d5 {[%emt 0:00:00]} 2. Bf4 {[%emt 0:00:08]} Nf6 {[%emt 0:00:00]} 3. Nf3 {[%emt 0:00:17]} e6 {[%emt 0:00:01]} 4. e3 {[%emt 0:00:10]} Bd6 {[%emt 0:00:13]} 5. Bg3 {[%emt 0:00:18]} Nh5 {[%emt 0:00:25]} 6. c3 {[%emt 0:04:09]} O-O {[%emt 0:00:12]} 7. Nbd2 {[%emt 0:01:45]} c5 {[%emt 0:00:26]} 8. Bd3 {[%emt 0:00:18]} c4 {[%emt 0:00:09]} 9. Bb1 {[%emt 0:02:12]} Be7 {[%emt 0:00:36]} 10. Qc2 {[%emt 0:00:14]} g6 {[%emt 0:03:01]} 11. Ne5 {[%emt 0:00:38]} Nf6 {[%emt 0:03:52]} 12. Bh4 {[%emt 0:05:46]} Bd7 {[%emt 0:01:15]} 13. O-O {[%emt 0:00:58]} Nc6 {[%emt 0:01:34]} 14. Bxf6 {[%emt 0:00:29]} Bxf6 {[%emt 0:00:49]} 15. Ndf3 {[%emt 0:01:00]} Qc7 {[%emt 0:05:07]} 16. Nxd7 {[%emt 0:00:53]} Qxd7 {[%emt 0:01:06]} 17. Re1 {[%emt 0:01:49]} Rfe8 {[%emt 0:03:55]} 18. e4 {[%emt 0:02:53]} b5 {[%emt 0:01:17]} 19. e5 {[%emt 0:01:25]} Bg7 {[%emt 0:04:59]} 20. b3 {[%emt 0:01:09]} Ne7 {[%emt 0:03:06]} 21. Qe2 {[%emt 0:02:42]} a5 {[%emt 0:01:24]} 22. Bc2 {[%emt 0:01:45]} a4 {[%emt 0:02:27]} 23. b4 {[%emt 0:01:14]} Bh6 {[%emt 0:01:52]} 24. h3 {[%emt 0:03:59]} Nc6 {[%emt 0:01:22]} 25. Nh2 {[%emt 0:02:24]} Qe7 {[%emt 0:00:46]} 26. Ng4 {[%emt 0:01:35]} Qg5 {[%emt 0:06:26]} 27. Nf6+ {[%emt 0:05:39]} Kf8 {[%emt 0:00:12]} 28. Nxe8 {[%emt 0:00:25]} Kxe8 {[%emt 0:05:07]} 29. g3 {[%emt 0:01:23]} f5 {[%emt 0:01:09]} 30. exf6 {[%emt 0:00:41]} Qxf6 {[%emt 0:02:07]} 31. Qg4 {[%emt 0:00:52]} e5 {[%emt 0:03:53]} 32. dxe5 {[%emt 0:00:18]} Nxe5 {[%emt 0:01:52]} 33. Qd4 {[%emt 0:00:29]} Bg7 {[%emt 0:01:13]} 34. f4 {[%emt 0:01:41]} Bh6 {[%emt 0:01:38]} 35. Rxe5+ {[%emt 0:01:12]} Kf7 {[%emt 0:00:16]} 36. Qxd5+ {[%emt 0:01:35]} Kf8 {[%emt 0:00:05]} 37. Qxa8+ {[%emt 0:00:30]} Kf7 {[%emt 0:00:18]} 38. Qe8+ {[%emt 0:00:25]} Kg7 {[%emt 0:00:13]} 39. Re7+ {[%emt 0:00:16]} Qxe7 {[%emt 0:00:09]} 40. Qxe7+ {[%emt 0:00:18]} Kg8 {[%emt 0:00:10]} 41. Rd1 {[%emt 0:30:33]} Bf8 {[%emt 0:30:09]} 42. Rd8 {[%emt 0:00:36]} g5 43. Rxf8# {[%emt 0:02:13]} 1-0

[Event "DVM U12W 2021"]
[Site "Willingen"]
[Date "2022.08.15"]
[Round "6"]
[White "Engeln, Helene"]
[Black "Greive, Greta"]
[Result "1-0"]
[ECO "C53"]
[WhiteElo "956"]
[BlackElo "1136"]
[Annotator "NA RC"]
[PlyCount "101"]
[EventDate "2022.08.12"]
[EventType "team-tourn"]
[EventRounds "7"]
[EventCountry "GER"]
[SourceTitle "playchess.com"]
[Source "ChessBase"]
[SourceQuality "1"]
[TimeControl "40/5400+30:1800+30"]

1. e4 {[%emt 0:00:05]} e5 {[%emt 0:00:02]} 2. Nf3 {[%emt 0:00:10]} Nc6 {[%emt 0:00:05]} 3. Bc4 {[%emt 0:00:04]} Bc5 {[%emt 0:00:05]} 4. c3 {[%emt 0:00:04]} Qe7 {[%emt 0:00:05]} 5. d4 {[%emt 0:00:42]} Bb6 {[%emt 0:00:16]} 6. d5 {[%emt 0:00:31]} Nd8 {[%emt 0:00:10]} 7. Bg5 {[%emt 0:03:03]} f6 {[%emt 0:00:10]} 8. Bh4 {[%emt 0:00:09]} g5 {[%emt 0:00:13]} 9. Bg3 {[%emt 0:00:11]} d6 {[%emt 0:00:20]} 10. h4 {[%emt 0:02:50]} h5 {[%emt 0:00:24]} 11. b4 {[%emt 0:18:49]} Bg4 {[%emt 0:05:52]} 12. Be2 {[%emt 0:04:00]} Nf7 {[%emt 0:02:48]} 13. Bb5+ {[%emt 0:00:24]} c6 {[%emt 0:00:15]} 14. dxc6 {[%emt 0:00:04]} bxc6 {[%emt 0:00:24]} 15. Bxc6+ {[%emt 0:00:04]} Bd7 {[%emt 0:00:12]} 16. Bxa8 {[%emt 0:00:09]} Qd8 {[%emt 0:03:29]} 17. Bd5 {[%emt 0:00:10]} Nfh6 {[%emt 0:00:33]} 18. hxg5 {[%emt 0:00:55]} fxg5 {[%emt 0:00:23]} 19. Rxh5 {[%emt 0:00:19]} Nf6 {[%emt 0:02:48]} 20. Rxg5 {[%emt 0:01:43]} Qc8 {[%emt 0:01:18]} 21. Nh4 {[%emt 0:03:10]} Nxd5 {[%emt 0:11:37]} 22. exd5 {[%emt 0:02:17]} Nf5 {[%emt 0:05:15]} 23. Qf3 {[%emt 0:01:06]} Rf8 {[%emt 0:03:34]} 24. Qh5+ {[%emt 0:00:50]} Kd8 {[%emt 0:01:20]} 25. Ng6 {[%emt 0:01:28]} Nxg3 {[%emt 0:01:50]} 26. Rxg3 {[%emt 0:01:43]} Bxf2+ {[%emt 0:00:33]} 27. Kd1 {[%emt 0:00:43]} Ba4+ {[%emt 0:01:16]} 28. Kc1 {[%emt 0:00:26]} Rf7 {[%emt 0:01:52]} 29. Rf3 {[%emt 0:01:41]} Rxf3 {[%emt 0:00:25]} 30. Qxf3 {[%emt 0:00:06]} Bb6 {[%emt 0:01:15]} 31. Qf8+ {[%emt 0:01:06]} Kc7 {[%emt 0:00:53]} 32. Qf7+ {[%emt 0:00:16]} Bd7 {[%emt 0:00:47]} 33. a4 {[%emt 0:03:58]} Be3+ {[%emt 0:00:12]} 34. Nd2 {[%emt 0:00:06]} Kb8 {[%emt 0:00:59]} 35. Kc2 {[%emt 0:00:41]} Bf5+ {[%emt 0:00:58]} 36. Kd1 {[%emt 0:02:27]} Qxc3 {[%emt 0:00:57]} 37. Qe8+ {[%emt 0:01:39]} Kb7 {[%emt 0:00:17]} 38. Qb5+ {[%emt 0:00:18]} Bb6 {[%emt 0:00:32]} 39. Rc1 {[%emt 0:00:52]} Bg4+ {[%emt 0:00:20]} 40. Nf3 {[%emt 0:00:25]} Qd4+ {[%emt 0:01:07]} 41. Kc2 {[%emt 0:34:48]} Bf5+ {[%emt 0:31:02]} 42. Kb3 {[%emt 0:02:45]} Qe3+ {[%emt 0:01:13]} 43. Rc3 {[%emt 0:00:23]} Qf2 {[%emt 0:00:52]} 44. Qc6+ {[%emt 0:00:10]} Ka6 {[%emt 0:00:24]} 45. Qb5+ {[%emt 0:00:28]} Kb7 {[%emt 0:00:15]} 46. Qc6+ {[%emt 0:00:36]} Ka6 {[%emt 0:00:16]} 47. b5+ {[%emt 0:03:45]} Ka5 {[%emt 0:00:36]} 48. Qc4 {[%emt 0:00:44]} Bc5 {[%emt 0:04:15]} 49. b6 {[%emt 0:00:30]} Bd7 {[%emt 0:01:45]} 50. b7 {[%emt 0:01:25]} Bf5 {[%emt 0:04:09]} 51. Qb5# {[%emt 0:00:19]} 1-0

[Event "DVM U12W 2021"]
[Site "Willingen"]
[Date "2022.08.15"]
[Round "6"]
[White "Marrufo, Adriana"]
[Black "Limmer, Maria"]
[Result "0-1"]
[ECO "C50"]
[WhiteElo "942"]
[BlackElo "767"]
[Annotator "NA RC"]
[PlyCount "108"]
[EventDate "2022.08.12"]
[EventType "team-tourn"]
[EventRounds "7"]
[EventCountry "GER"]
[SourceTitle "playchess.com"]
[Source "ChessBase"]
[SourceQuality "1"]
[TimeControl "40/5400+30:1800+30"]

1. e4 {[%emt 0:00:07]} e5 {[%emt 0:00:05]} 2. Nf3 {[%emt 0:00:20]} Nc6 {[%emt 0:00:08]} 3. Bc4 {[%emt 0:00:14]} Nf6 {[%emt 0:00:24]} 4. d3 {[%emt 0:00:15]} h6 {[%emt 0:00:11]} 5. Nc3 {[%emt 0:00:43]} Bc5 {[%emt 0:00:14]} 6. Nxe5 {[%emt 0:01:29]} Nxe5 {[%emt 0:00:35]} 7. d4 {[%emt 0:00:16]} Bd6 {[%emt 0:01:11]} 8. dxe5 {[%emt 0:00:29]} Bxe5 {[%emt 0:00:21]} 9. Qe2 {[%emt 0:01:34]} O-O {[%emt 0:00:44]} 10. h3 {[%emt 0:00:20]} d6 {[%emt 0:00:21]} 11. g4 {[%emt 0:00:20]} Be6 {[%emt 0:00:56]} 12. g5 {[%emt 0:00:48]} Bxc3+ {[%emt 0:02:03]} 13. bxc3 {[%emt 0:00:39]} Nd7 {[%emt 0:00:38]} 14. gxh6 {[%emt 0:00:40]} Qf6 {[%emt 0:01:08]} 15. Rg1 {[%emt 0:00:50]} g6 {[%emt 0:01:38]} 16. Bg5 {[%emt 0:01:34]} Qxc3+ {[%emt 0:01:29]} 17. Kf1 {[%emt 0:02:54]} Qxa1+ {[%emt 0:00:25]} 18. Kg2 {[%emt 0:00:48]} Qe5 {[%emt 0:01:09]} 19. f4 {[%emt 0:04:13]} Bxc4 {[%emt 0:01:43]} 20. Qxc4 {[%emt 0:00:35]} Qe8 {[%emt 0:00:23]} 21. Qc3 {[%emt 0:00:58]} f6 {[%emt 0:00:46]} 22. h4 {[%emt 0:01:04]} Qxe4+ {[%emt 0:01:15]} 23. Kh2 {[%emt 0:01:21]} Rae8 {[%emt 0:01:20]} 24. h5 {[%emt 0:00:59]} Qe2+ {[%emt 0:00:40]} 25. Rg2 {[%emt 0:00:16]} Qxh5+ {[%emt 0:01:03]} 26. Kg1 {[%emt 0:01:09]} Re2 {[%emt 0:02:11]} 27. Qc4+ {[%emt 0:00:46]} Kh7 {[%emt 0:00:55]} 28. Rxe2 {[%emt 0:00:23]} fxg5 {[%emt 0:01:02]} 29. Re7+ {[%emt 0:00:34]} Kxh6 {[%emt 0:00:31]} 30. Qxc7 {[%emt 0:03:22]} Nf6 {[%emt 0:00:50]} 31. Qxd6 {[%emt 0:02:35]} Qg4+ {[%emt 0:01:04]} 32. Kf2 {[%emt 0:01:06]} Qxf4+ {[%emt 0:00:37]} 33. Qxf4 {[%emt 0:00:31]} gxf4 {[%emt 0:00:12]} 34. Rxb7 {[%emt 0:00:19]} Ng4+ {[%emt 0:00:33]} 35. Kf3 {[%emt 0:00:18]} Ne5+ {[%emt 0:00:26]} 36. Ke4 {[%emt 0:00:26]} Nc6 {[%emt 0:00:21]} 37. Kf3 {[%emt 0:00:35]} g5 {[%emt 0:00:23]} 38. c4 {[%emt 0:00:16]} Kh5 {[%emt 0:00:28]} 39. c5 {[%emt 0:00:41]} g4+ {[%emt 0:00:24]} 40. Kf2 {[%emt 0:00:18]} g3+ {[%emt 0:00:35]} 41. Kf3 {[%emt 0:30:29]} Nd4+ {[%emt 0:31:27]} 42. Kg2 {[%emt 0:00:40]} Kh4 {[%emt 0:00:31]} 43. Rh7+ {[%emt 0:00:25]} Kg4 {[%emt 0:00:55]} 44. Rg7+ {[%emt 0:00:23]} Kf5 {[%emt 0:00:09]} 45. Rd7 {[%emt 0:00:37]} Nc6 {[%emt 0:00:45]} 46. Rd5+ {[%emt 0:00:29]} Kg4 {[%emt 0:00:22]} 47. Rd6 {[%emt 0:00:25]} f3+ {[%emt 0:00:32]} 48. Kf1 {[%emt 0:00:44]} Re8 {[%emt 0:00:48]} 49. Rd2 {[%emt 0:01:21]} Kh3 {[%emt 0:00:56]} 50. a4 {[%emt 0:01:18]} g2+ {[%emt 0:00:48]} 51. Kg1 {[%emt 0:00:30]} Kg3 {[%emt 0:00:13]} 52. a5 {[%emt 0:00:21]} f2+ {[%emt 0:00:25]} 53. Rxf2 {[%emt 0:00:14]} Re1+ {[%emt 0:00:33]} 54. Rf1 {[%emt 0:00:10]} Rxf1# {[%emt 0:00:45]} 0-1

[Event "DVM U12W 2021"]
[Site "Willingen"]
[Date "2022.08.15"]
[Round "6"]
[White "Doberchak, Emily Alice"]
[Black "Reetz, Shaila"]
[Result "1-0"]
[ECO "C50"]
[WhiteElo "928"]
[BlackElo "837"]
[Annotator "NA RC"]
[PlyCount "69"]
[EventDate "2022.08.12"]
[EventType "team-tourn"]
[EventRounds "7"]
[EventCountry "GER"]
[SourceTitle "playchess.com"]
[Source "ChessBase"]
[SourceQuality "1"]
[TimeControl "40/5400+30:1800+30"]

1. e4 {[%emt 0:00:04]} e5 {[%emt 0:00:00]} 2. Nf3 {[%emt 0:00:37]} Nc6 {[%emt 0:00:39]} 3. Bc4 {[%emt 0:00:33]} Bc5 {[%emt 0:00:14]} 4. Nc3 {[%emt 0:00:49]} Nf6 {[%emt 0:00:43]} 5. d3 {[%emt 0:00:21]} O-O {[%emt 0:00:28]} 6. Qe2 {[%emt 0:02:23]} h6 {[%emt 0:00:41]} 7. Be3 {[%emt 0:00:19]} Bb6 {[%emt 0:00:13]} 8. Bxb6 {[%emt 0:00:26]} axb6 {[%emt 0:00:20]} 9. O-O-O {[%emt 0:00:30]} d6 {[%emt 0:00:21]} 10. h3 {[%emt 0:01:32]} Be6 {[%emt 0:01:08]} 11. Bxe6 {[%emt 0:00:18]} fxe6 {[%emt 0:00:26]} 12. Qe3 {[%emt 0:01:31]} Nb4 {[%emt 0:02:08]} 13. d4 {[%emt 0:01:42]} Nd7 {[%emt 0:01:47]} 14. a3 {[%emt 0:01:08]} Nc6 {[%emt 0:00:47]} 15. d5 {[%emt 0:00:16]} exd5 {[%emt 0:00:44]} 16. exd5 {[%emt 0:00:26]} Ne7 {[%emt 0:00:32]} 17. g4 {[%emt 0:01:07]} c6 {[%emt 0:01:39]} 18. dxc6 {[%emt 0:00:17]} Nxc6 {[%emt 0:00:21]} 19. h4 {[%emt 0:00:39]} Na5 {[%emt 0:01:50]} 20. g5 {[%emt 0:00:35]} Nc4 {[%emt 0:00:26]} 21. Qe4 {[%emt 0:02:13]} b5 {[%emt 0:01:35]} 22. gxh6 {[%emt 0:01:26]} Rf7 {[%emt 0:01:11]} 23. Rhg1 {[%emt 0:02:07]} Ndb6 {[%emt 0:01:25]} 24. Ng5 {[%emt 0:00:40]} b4 {[%emt 0:00:28]} 25. Nxf7 {[%emt 0:00:48]} Qf8 {[%emt 0:00:23]} 26. Rxg7+ {[%emt 0:00:44]} Qxg7 {[%emt 0:00:20]} 27. hxg7 {[%emt 0:00:10]} bxa3 {[%emt 0:00:12]} 28. bxa3 {[%emt 0:00:33]} Rxa3 {[%emt 0:00:16]} 29. Nb1 {[%emt 0:00:19]} Na4 {[%emt 0:00:37]} 30. Nxa3 {[%emt 0:00:40]} d5 {[%emt 0:00:44]} 31. Qxd5 {[%emt 0:01:42]} Nxa3 {[%emt 0:00:27]} 32. Rg1 {[%emt 0:01:14]} Nc3 {[%emt 0:00:47]} 33. Qd8+ {[%emt 0:00:25]} Kxf7 {[%emt 0:00:25]} 34. Re1 {[%emt 0:00:35]} Nc4 {[%emt 0:00:38]} 35. g8=Q# {[%emt 0:00:57]} 1-0